[Event "*** SCC Grand Prix: Titled Tuesday Blitz"]
[Site "Chess.com"]
[Date "2020.08.04"]
[Round "9"]
[White "ellatambien"]
[Black "mortngabriel"]
[Result "0-1"]
[WhiteElo "2339"]
[BlackElo "2426"]
[TimeControl "180+1"]
[EndTime "15:27:58 PDT"]
[Termination "mortngabriel won by checkmate"]

1. c4 {[%clk 0:03:00.9]} 1... e5 {[%clk 0:02:59.2]} 2. Nc3 {[%clk 0:03:00.3]}
2... Bb4 {[%clk 0:02:58.4]} 3. Nd5 {[%clk 0:02:59.4]} 3... Nc6 {[%clk
0:02:55.7]} 4. g3 {[%clk 0:02:55.4]} 4... Nf6 {[%clk 0:02:54.6]} 5. Bg2 {[%clk
0:02:55.2]} 5... O-O {[%clk 0:02:50.6]} 6. Nf3 {[%clk 0:02:55.1]} 6... Re8
{[%clk 0:02:50.4]} 7. O-O {[%clk 0:02:54.5]} 7... Bf8 {[%clk 0:02:48.3]} 8. d3
{[%clk 0:02:54.5]} 8... e4 {[%clk 0:02:39]} 9. dxe4 {[%clk 0:02:48.4]} 9... Nxe4
{[%clk 0:02:38.2]} 10. Bf4 {[%clk 0:02:47.8]} 10... d6 {[%clk 0:02:37.8]} 11.
Nd2 {[%clk 0:02:33]} 11... Bf5 {[%clk 0:02:30.9]} 12. Nb3 {[%clk 0:02:00.3]}
12... a5 {[%clk 0:02:19]} 13. f3 {[%clk 0:01:58.5]} 13... Nf6 {[%clk 0:02:01.9]}
14. Bg5 {[%clk 0:01:53.2]} 14... Be7 {[%clk 0:02:01.1]} 15. Nxe7+ {[%clk
0:01:49]} 15... Qxe7 {[%clk 0:02:01.3]} 16. e4 {[%clk 0:01:47]} 16... Be6 {[%clk
0:01:58.8]} 17. Rc1 {[%clk 0:01:45.2]} 17... h6 {[%clk 0:01:56.6]} 18. Be3
{[%clk 0:01:44.4]} 18... Nd7 {[%clk 0:01:46]} 19. Nd4 {[%clk 0:01:38.5]} 19...
Nc5 {[%clk 0:01:42.1]} 20. Re1 {[%clk 0:01:31.1]} 20... a4 {[%clk 0:01:33.9]}
21. Nb5 {[%clk 0:01:22.5]} 21... b6 {[%clk 0:01:29]} 22. Bf1 {[%clk 0:01:16.2]}
22... Ne5 {[%clk 0:01:14.1]} 23. h3 {[%clk 0:01:12.5]} 23... Qf6 {[%clk
0:01:06.8]} 24. f4 {[%clk 0:01:04.8]} 24... Nxc4 {[%clk 0:00:45.4]} 25. Bxc4
{[%clk 0:00:59.4]} 25... Nxe4 {[%clk 0:00:33.5]} 26. Nxc7 {[%clk 0:00:44.7]}
26... Nxg3 {[%clk 0:00:17.9]} 27. Nxe8 {[%clk 0:00:21.9]} 27... Rxe8 {[%clk
0:00:17.3]} 28. Kh2 {[%clk 0:00:15.5]} 28... Nf5 {[%clk 0:00:14]} 29. Bf2 {[%clk
0:00:13]} 29... Qxb2 {[%clk 0:00:10.1]} 30. Rc2 {[%clk 0:00:12.4]} 30... Qf6
{[%clk 0:00:08.9]} 31. Bxe6 {[%clk 0:00:11.9]} 31... fxe6 {[%clk 0:00:09.8]} 32.
Qd3 {[%clk 0:00:10.4]} 32... d5 {[%clk 0:00:09.3]} 33. Qf3 {[%clk 0:00:10]}
33... Rf8 {[%clk 0:00:09.3]} 34. Rce2 {[%clk 0:00:09.8]} 34... Re8 {[%clk
0:00:08.7]} 35. Qg4 {[%clk 0:00:09.6]} 35... Kh7 {[%clk 0:00:07.9]} 36. Rg1
{[%clk 0:00:09.4]} 36... b5 {[%clk 0:00:07.5]} 37. a3 {[%clk 0:00:08.2]} 37...
Rf8 {[%clk 0:00:05.4]} 38. Bc5 {[%clk 0:00:08]} 38... Rc8 {[%clk 0:00:04.9]} 39.
Bb4 {[%clk 0:00:08]} 39... Rc4 {[%clk 0:00:04.8]} 40. Reg2 {[%clk 0:00:07.8]}
40... Re4 {[%clk 0:00:02.4]} 41. Qg6+ {[%clk 0:00:07.6]} 41... Qxg6 {[%clk
0:00:02.2]} 42. Rxg6 {[%clk 0:00:08]} 42... Rxf4 {[%clk 0:00:02.7]} 43. Rxe6
{[%clk 0:00:07.8]} 43... d4 {[%clk 0:00:02.6]} 44. Rg2 {[%clk 0:00:07.9]} 44...
Ne3 {[%clk 0:00:02.3]} 45. Re4 {[%clk 0:00:07.5]} 45... Rxe4 {[%clk 0:00:02]}
46. Re2 {[%clk 0:00:07.8]} 46... Nf1+ {[%clk 0:00:02]} 47. Kg2 {[%clk
0:00:07.1]} 47... Rxe2+ {[%clk 0:00:02.9]} 48. Kxf1 {[%clk 0:00:08]} 48... Rh2
{[%clk 0:00:03.4]} 49. Bc5 {[%clk 0:00:08.5]} 49... Rxh3 {[%clk 0:00:03.8]} 50.
Bxd4 {[%clk 0:00:08.2]} 50... Rxa3 {[%clk 0:00:04.1]} 51. Bc5 {[%clk 0:00:06.7]}
51... Rb3 {[%clk 0:00:04.4]} 52. Bb4 {[%clk 0:00:06.7]} 52... a3 {[%clk
0:00:05.3]} 53. Ke2 {[%clk 0:00:07.3]} 53... a2 {[%clk 0:00:05.1]} 54. Kd2
{[%clk 0:00:07.5]} 54... a1=Q {[%clk 0:00:05.4]} 55. Kc2 {[%clk 0:00:07.6]}
55... Qa2+ {[%clk 0:00:06.3]} 56. Kc1 {[%clk 0:00:07.6]} 56... Rb1# {[%clk
0:00:07.2]} 0-1

[Event "*** SCC Grand Prix: Titled Tuesday Blitz"]
[Site "Chess.com"]
[Date "2020.08.04"]
[Round "9"]
[White "VladaSviridova"]
[Black "xberli"]
[Result "1-0"]
[WhiteElo "2201"]
[BlackElo "2317"]
[TimeControl "180+1"]
[EndTime "15:28:03 PDT"]
[Termination "VladaSviridova won by resignation"]

1. d4 {[%clk 0:03:00.6]} 1... Nf6 {[%clk 0:02:59.8]} 2. c4 {[%clk 0:03:00.7]}
2... g6 {[%clk 0:02:59.5]} 3. Nc3 {[%clk 0:03:00.5]} 3... d5 {[%clk 0:02:59.8]}
4. cxd5 {[%clk 0:03:00.6]} 4... Nxd5 {[%clk 0:03:00.7]} 5. e4 {[%clk 0:03:00.9]}
5... Nxc3 {[%clk 0:03:01.1]} 6. bxc3 {[%clk 0:03:01.3]} 6... Bg7 {[%clk
0:03:02]} 7. Bc4 {[%clk 0:03:01.6]} 7... c5 {[%clk 0:03:01.4]} 8. Ne2 {[%clk
0:03:01.9]} 8... O-O {[%clk 0:03:02.3]} 9. O-O {[%clk 0:03:01.9]} 9... Nc6
{[%clk 0:03:02.7]} 10. Be3 {[%clk 0:03:02.1]} 10... Bd7 {[%clk 0:03:02.4]} 11.
Rb1 {[%clk 0:03:01.3]} 11... Qc7 {[%clk 0:03:02.1]} 12. Qd2 {[%clk 0:03:01.2]}
12... a6 {[%clk 0:02:51.4]} 13. Bd3 {[%clk 0:02:58.3]} 13... b5 {[%clk
0:02:38.5]} 14. Bh6 {[%clk 0:02:48.8]} 14... Rfd8 {[%clk 0:01:56.5]} 15. Bxg7
{[%clk 0:02:47.8]} 15... Kxg7 {[%clk 0:01:57.4]} 16. Qe3 {[%clk 0:02:46.9]}
16... Rac8 {[%clk 0:01:45.7]} 17. h4 {[%clk 0:01:50.1]} 17... h5 {[%clk
0:01:42]} 18. Rfd1 {[%clk 0:01:30.2]} 18... Qa5 {[%clk 0:01:38]} 19. Rb2 {[%clk
0:01:11.6]} 19... Be8 {[%clk 0:01:24]} 20. e5 {[%clk 0:00:51.8]} 20... Qa3
{[%clk 0:01:05.4]} 21. Rdd2 {[%clk 0:00:43.6]} 21... cxd4 {[%clk 0:01:04.1]} 22.
cxd4 {[%clk 0:00:43.4]} 22... Na5 {[%clk 0:01:04.1]} 23. Rdc2 {[%clk 0:00:28.5]}
23... Bc6 {[%clk 0:00:16.3]} 24. Kh2 {[%clk 0:00:26.7]} 24... Bd5 {[%clk
0:00:15.8]} 25. Nf4 {[%clk 0:00:24.9]} 25... Bc4 {[%clk 0:00:14.1]} 26. Bxc4
{[%clk 0:00:23.6]} 26... Qxe3 {[%clk 0:00:13.2]} 27. fxe3 {[%clk 0:00:23.4]}
27... Nxc4 {[%clk 0:00:13.6]} 28. Rb3 {[%clk 0:00:21]} 28... Nb6 {[%clk
0:00:13.1]} 29. Rxc8 {[%clk 0:00:19.9]} 29... Rxc8 {[%clk 0:00:14]} 30. Kg3
{[%clk 0:00:16.9]} 30... Rc2 {[%clk 0:00:14.2]} 31. a3 {[%clk 0:00:15.3]} 31...
e6 {[%clk 0:00:14.2]} 32. Nd3 {[%clk 0:00:14.4]} 32... Nc4 {[%clk 0:00:13.6]}
33. Nc5 {[%clk 0:00:14.3]} 33... Re2 {[%clk 0:00:13]} 34. Nxa6 {[%clk
0:00:13.9]} 34... Rxe3+ {[%clk 0:00:09.8]} 35. Rxe3 {[%clk 0:00:13.6]} 35...
Nxe3 {[%clk 0:00:10.7]} 36. Nc7 {[%clk 0:00:13.3]} 36... Nf5+ {[%clk 0:00:10.6]}
37. Kf4 {[%clk 0:00:12.7]} 37... Nxd4 {[%clk 0:00:11.5]} 38. Ke4 {[%clk
0:00:12.4]} 38... Nc2 {[%clk 0:00:11.6]} 39. Nxb5 {[%clk 0:00:12.4]} 39... f5+
{[%clk 0:00:11.7]} 40. exf6+ {[%clk 0:00:12.1]} 40... Kxf6 {[%clk 0:00:12.6]}
41. a4 {[%clk 0:00:12.6]} 41... Nb4 {[%clk 0:00:12.4]} 42. a5 {[%clk 0:00:12.4]}
42... Na6 {[%clk 0:00:12.6]} 43. Nd6 {[%clk 0:00:11]} 43... e5 {[%clk
0:00:11.8]} 44. Nc4 {[%clk 0:00:10.7]} 44... Nc5+ {[%clk 0:00:11.2]} 45. Kd5
{[%clk 0:00:10.8]} 45... Na6 {[%clk 0:00:10.2]} 46. Nxe5 {[%clk 0:00:10.9]}
46... Nc7+ {[%clk 0:00:10.3]} 47. Ke4 {[%clk 0:00:10.7]} 47... Na6 {[%clk
0:00:09.3]} 48. Nc6 {[%clk 0:00:10.7]} 48... g5 {[%clk 0:00:08.9]} 49. g3 {[%clk
0:00:09.8]} 49... gxh4 {[%clk 0:00:07.8]} 50. gxh4 {[%clk 0:00:10.1]} 50... Kg6
{[%clk 0:00:08.3]} 51. Ke5 {[%clk 0:00:09.5]} 51... Nc5 {[%clk 0:00:07.4]} 52.
Kd5 {[%clk 0:00:08.6]} 52... Na6 {[%clk 0:00:07.2]} 53. Kc4 {[%clk 0:00:08.4]}
53... Kf5 {[%clk 0:00:07.4]} 54. Kb5 {[%clk 0:00:08.5]} 54... Nc7+ {[%clk
0:00:07.5]} 55. Kb6 {[%clk 0:00:08.9]} 55... Nd5+ {[%clk 0:00:07.7]} 56. Kb7
{[%clk 0:00:07.3]} 1-0

[Event "*** SCC Grand Prix: Titled Tuesday Blitz"]
[Site "Chess.com"]
[Date "2020.08.04"]
[Round "9"]
[White "SantoBlue"]
[Black "AvitalBor"]
[Result "0-1"]
[WhiteElo "2910"]
[BlackElo "2786"]
[TimeControl "180+1"]
[EndTime "15:28:08 PDT"]
[Termination "AvitalBor won by checkmate"]

1. e4 {[%clk 0:03:00.9]} 1... e5 {[%clk 0:03:00]} 2. Nf3 {[%clk 0:02:58.8]} 2...
Nc6 {[%clk 0:03:00.3]} 3. Bc4 {[%clk 0:02:55]} 3... Bc5 {[%clk 0:02:59]} 4. c3
{[%clk 0:02:52.9]} 4... Nf6 {[%clk 0:02:58]} 5. d4 {[%clk 0:02:53.1]} 5... exd4
{[%clk 0:02:58.4]} 6. e5 {[%clk 0:02:54]} 6... d5 {[%clk 0:02:49.2]} 7. Bb5
{[%clk 0:02:54.4]} 7... Ne4 {[%clk 0:02:49.5]} 8. cxd4 {[%clk 0:02:51.7]} 8...
Bb6 {[%clk 0:02:49.7]} 9. Nc3 {[%clk 0:02:50.7]} 9... O-O {[%clk 0:02:49.7]} 10.
Be3 {[%clk 0:02:50.6]} 10... f6 {[%clk 0:02:41.3]} 11. Qb3 {[%clk 0:02:36.9]}
11... Nxc3 {[%clk 0:02:39]} 12. bxc3 {[%clk 0:02:34.1]} 12... Bg4 {[%clk
0:02:36.7]} 13. Bxc6 {[%clk 0:02:27.6]} 13... bxc6 {[%clk 0:02:36.1]} 14. exf6
{[%clk 0:02:27.7]} 14... Qxf6 {[%clk 0:02:05.2]} 15. Ne5 {[%clk 0:02:27.6]}
15... Bh5 {[%clk 0:02:04]} 16. O-O {[%clk 0:02:13.1]} 16... Rad8 {[%clk
0:01:34.7]} 17. a4 {[%clk 0:02:10.1]} 17... a5 {[%clk 0:01:31.9]} 18. h3 {[%clk
0:02:09]} 18... Kh8 {[%clk 0:01:20.9]} 19. Qc2 {[%clk 0:01:57.8]} 19... Rd6
{[%clk 0:01:11.5]} 20. f4 {[%clk 0:01:56.9]} 20... Bg6 {[%clk 0:01:03.1]} 21.
Qd2 {[%clk 0:01:33]} 21... Be4 {[%clk 0:01:01.9]} 22. f5 {[%clk 0:01:33.2]}
22... c5 {[%clk 0:00:44]} 23. dxc5 {[%clk 0:01:12.9]} 23... Qxe5 {[%clk
0:00:41.7]} 24. cxd6 {[%clk 0:01:08.8]} 24... Bxg2 {[%clk 0:00:41.1]} 25. Qxg2
{[%clk 0:00:53.8]} 25... Bxe3+ {[%clk 0:00:40.5]} 26. Kh1 {[%clk 0:00:54.4]}
26... Qxd6 {[%clk 0:00:40.7]} 27. Rae1 {[%clk 0:00:53.4]} 27... d4 {[%clk
0:00:36.1]} 28. cxd4 {[%clk 0:00:52.6]} 28... Bxd4 {[%clk 0:00:37]} 29. Re6
{[%clk 0:00:51.4]} 29... Qa3 {[%clk 0:00:27.2]} 30. Rfe1 {[%clk 0:00:50.5]}
30... Qxa4 {[%clk 0:00:23.5]} 31. Qe4 {[%clk 0:00:41.7]} 31... Qb3 {[%clk
0:00:15.7]} 32. Qxd4 {[%clk 0:00:17.8]} 32... Qxh3+ {[%clk 0:00:15.2]} 33. Kg1
{[%clk 0:00:18.4]} 33... Qg3+ {[%clk 0:00:15.5]} 34. Kf1 {[%clk 0:00:18.7]}
34... Rxf5+ {[%clk 0:00:11.2]} 35. Ke2 {[%clk 0:00:18.9]} 35... h6 {[%clk
0:00:09]} 36. Qd8+ {[%clk 0:00:15.2]} 36... Kh7 {[%clk 0:00:09]} 37. Qd3 {[%clk
0:00:14.8]} 37... Qg4+ {[%clk 0:00:05.6]} 38. Kd2 {[%clk 0:00:14.1]} 38... Qb4+
{[%clk 0:00:05.5]} 39. Kd1 {[%clk 0:00:07.9]} 39... Qa4+ {[%clk 0:00:05.2]} 40.
Qc2 {[%clk 0:00:06.9]} 40... Qa1+ {[%clk 0:00:03.9]} 41. Kd2 {[%clk 0:00:07.2]}
41... Qd4+ {[%clk 0:00:04]} 42. Qd3 {[%clk 0:00:06.7]} 42... Qb2+ {[%clk
0:00:04.1]} 43. Kd1 {[%clk 0:00:07.2]} 43... Qa1+ {[%clk 0:00:03.7]} 44. Kc2
{[%clk 0:00:07.8]} 44... Qa2+ {[%clk 0:00:03.7]} 45. Kc1 {[%clk 0:00:08.3]}
45... Qa1+ {[%clk 0:00:03.7]} 46. Qb1 {[%clk 0:00:08]} 46... Qc3+ {[%clk
0:00:03.7]} 47. Qc2 {[%clk 0:00:06.5]} 47... Qa1+ {[%clk 0:00:03.9]} 48. Kd2
{[%clk 0:00:06.8]} 48... Qd4+ {[%clk 0:00:04.3]} 49. Ke2 {[%clk 0:00:04.4]}
49... Qg4+ {[%clk 0:00:03.6]} 50. Kd3 {[%clk 0:00:02.3]} 50... g6 {[%clk
0:00:02.2]} 51. Kc3 {[%clk 0:00:02.5]} 51... Rc5+ {[%clk 0:00:02]} 52. Kb3
{[%clk 0:00:03.1]} 52... Qb4+ {[%clk 0:00:01.9]} 53. Ka2 {[%clk 0:00:03]} 53...
Rxc2+ {[%clk 0:00:02.3]} 54. Ka1 {[%clk 0:00:03.9]} 54... Qb2# {[%clk
0:00:02.7]} 0-1

[Event "*** SCC Grand Prix: Titled Tuesday Blitz"]
[Site "Chess.com"]
[Date "2020.08.04"]
[Round "9"]
[White "Guenplen"]
[Black "penguingm1"]
[Result "0-1"]
[WhiteElo "2843"]
[BlackElo "2953"]
[TimeControl "180+1"]
[EndTime "15:28:11 PDT"]
[Termination "penguingm1 won by resignation"]

1. d4 {[%clk 0:03:00.9]} 1... d5 {[%clk 0:03:00.1]} 2. Bf4 {[%clk 0:03:01]} 2...
Nf6 {[%clk 0:03:00.1]} 3. e3 {[%clk 0:03:01.2]} 3... e6 {[%clk 0:03:00.4]} 4.
Nd2 {[%clk 0:03:01.1]} 4... Bd6 {[%clk 0:03:00.9]} 5. Ngf3 {[%clk 0:03:00.5]}
5... c5 {[%clk 0:03:01.3]} 6. Bb5+ {[%clk 0:02:57.8]} 6... Nc6 {[%clk
0:02:55.1]} 7. c3 {[%clk 0:02:56.3]} 7... Bxf4 {[%clk 0:02:44.9]} 8. exf4 {[%clk
0:02:49.9]} 8... Qb6 {[%clk 0:02:45.2]} 9. Qb3 {[%clk 0:02:35.7]} 9... O-O
{[%clk 0:02:35.1]} 10. dxc5 {[%clk 0:02:29.5]} 10... Qxc5 {[%clk 0:02:34.3]} 11.
Bd3 {[%clk 0:02:28.4]} 11... b6 {[%clk 0:02:30.9]} 12. O-O {[%clk 0:02:26.9]}
12... Bb7 {[%clk 0:02:31.1]} 13. Qd1 {[%clk 0:02:19.8]} 13... Qd6 {[%clk
0:02:29.3]} 14. g3 {[%clk 0:02:19]} 14... Rad8 {[%clk 0:02:06.4]} 15. Nb3 {[%clk
0:02:17.4]} 15... d4 {[%clk 0:01:57.9]} 16. Nbxd4 {[%clk 0:02:07.2]} 16... Nxd4
{[%clk 0:01:09]} 17. Nxd4 {[%clk 0:02:08.1]} 17... Qd5 {[%clk 0:00:55.2]} 18. f3
{[%clk 0:02:07.8]} 18... Rd7 {[%clk 0:00:49.7]} 19. Qe2 {[%clk 0:02:04.4]} 19...
Rfd8 {[%clk 0:00:49.1]} 20. Rad1 {[%clk 0:02:03.4]} 20... Qxa2 {[%clk
0:00:44.1]} 21. Rd2 {[%clk 0:01:55.6]} 21... Qa5 {[%clk 0:00:41.2]} 22. Rfd1
{[%clk 0:01:52]} 22... Qc5 {[%clk 0:00:41.2]} 23. Kg2 {[%clk 0:01:47.9]} 23...
h6 {[%clk 0:00:33.2]} 24. Bb1 {[%clk 0:01:26.6]} 24... Rd6 {[%clk 0:00:27.3]}
25. Qe5 {[%clk 0:01:07.1]} 25... Rd5 {[%clk 0:00:25.7]} 26. Qe2 {[%clk 0:01:05]}
26... Qc7 {[%clk 0:00:21.3]} 27. Kf2 {[%clk 0:00:56.9]} 27... a6 {[%clk
0:00:19.9]} 28. Ba2 {[%clk 0:00:54.9]} 28... R5d6 {[%clk 0:00:18.2]} 29. Qc4
{[%clk 0:00:49.9]} 29... Qd7 {[%clk 0:00:13.7]} 30. Qe2 {[%clk 0:00:45.4]} 30...
Qc7 {[%clk 0:00:10.7]} 31. Qc4 {[%clk 0:00:44.5]} 31... Qe7 {[%clk 0:00:09.4]}
32. Qe2 {[%clk 0:00:43.8]} 32... Qd7 {[%clk 0:00:07.5]} 33. Bb1 {[%clk
0:00:29.5]} 33... b5 {[%clk 0:00:06.9]} 34. Nb3 {[%clk 0:00:26.4]} 34... Rxd2
{[%clk 0:00:04.2]} 35. Rxd2 {[%clk 0:00:27.3]} 35... Bd5 {[%clk 0:00:04.1]} 36.
Nc5 {[%clk 0:00:25.7]} 36... Qc6 {[%clk 0:00:04.4]} 37. b4 {[%clk 0:00:25.3]}
37... a5 {[%clk 0:00:04.7]} 38. Bd3 {[%clk 0:00:23.9]} 38... axb4 {[%clk
0:00:04.6]} 39. cxb4 {[%clk 0:00:24.8]} 39... Qb6 {[%clk 0:00:05]} 40. Qe3
{[%clk 0:00:22.9]} 40... Bc6 {[%clk 0:00:03.5]} 41. Be2 {[%clk 0:00:13]} 41...
Nd5 {[%clk 0:00:03.5]} 42. Qd4 {[%clk 0:00:11.4]} 42... Ra8 {[%clk 0:00:04.2]}
43. g4 {[%clk 0:00:05.2]} 43... Qa7 {[%clk 0:00:04.3]} 44. f5 {[%clk 0:00:04.3]}
44... exf5 {[%clk 0:00:03.2]} 45. gxf5 {[%clk 0:00:04.4]} 45... Qa3 {[%clk
0:00:03.8]} 46. Rb2 {[%clk 0:00:01.4]} 46... Nc3 {[%clk 0:00:04.1]} 47. Ne4
{[%clk 0:00:01.4]} 47... Qxb2 {[%clk 0:00:04.2]} 48. Qxc3 {[%clk 0:00:01.5]}
48... Qxc3 {[%clk 0:00:04.4]} 49. Nxc3 {[%clk 0:00:02.4]} 49... Ra3 {[%clk
0:00:04.9]} 50. Nxb5 {[%clk 0:00:02.5]} 50... Bxb5 {[%clk 0:00:05.5]} 51. Bxb5
{[%clk 0:00:03.3]} 51... Rb3 {[%clk 0:00:06.2]} 52. Bc6 {[%clk 0:00:03]} 52...
Rxb4 {[%clk 0:00:06.8]} 53. Be4 {[%clk 0:00:03.3]} 53... Kf8 {[%clk 0:00:07.4]}
54. Ke3 {[%clk 0:00:03.4]} 54... Ke7 {[%clk 0:00:08.1]} 55. Kf4 {[%clk
0:00:03.8]} 55... Kd6 {[%clk 0:00:08.7]} 56. h4 {[%clk 0:00:04.1]} 56... f6
{[%clk 0:00:09.1]} 57. Kg3 {[%clk 0:00:04.1]} 57... Ke5 {[%clk 0:00:09.6]} 58.
Bd3 {[%clk 0:00:04.1]} 58... Kd4 {[%clk 0:00:09]} 59. Be4 {[%clk 0:00:04.3]}
59... Ke3 {[%clk 0:00:09.6]} 60. Bd5 {[%clk 0:00:04.2]} 60... Rf4 {[%clk
0:00:09.9]} 61. Be4 {[%clk 0:00:04.4]} 61... h5 {[%clk 0:00:09.3]} 62. Bc2
{[%clk 0:00:03.5]} 62... Rxf3+ {[%clk 0:00:09.6]} 0-1

[Event "*** SCC Grand Prix: Titled Tuesday Blitz"]
[Site "Chess.com"]
[Date "2020.08.04"]
[Round "9"]
[White "Goryachkina"]
[Black "1f3_2g41-0"]
[Result "1-0"]
[WhiteElo "2576"]
[BlackElo "2425"]
[TimeControl "180+1"]
[EndTime "15:28:11 PDT"]
[Termination "Goryachkina won by resignation"]

1. e4 {[%clk 0:03:00.9]} 1... c5 {[%clk 0:02:58.1]} 2. Nf3 {[%clk 0:03:00.3]}
2... d6 {[%clk 0:02:58.1]} 3. c3 {[%clk 0:03:00]} 3... Nf6 {[%clk 0:02:57.4]} 4.
Be2 {[%clk 0:03:00]} 4... Nc6 {[%clk 0:02:56.5]} 5. d4 {[%clk 0:02:59]} 5...
cxd4 {[%clk 0:02:54.2]} 6. cxd4 {[%clk 0:02:58.2]} 6... Nxe4 {[%clk 0:02:44.7]}
7. d5 {[%clk 0:02:57.7]} 7... Qa5+ {[%clk 0:02:40.5]} 8. Nc3 {[%clk 0:02:57.4]}
8... Ne5 {[%clk 0:02:24.4]} 9. Nxe5 {[%clk 0:02:56.4]} 9... dxe5 {[%clk
0:02:25.3]} 10. O-O {[%clk 0:02:55.5]} 10... Nxc3 {[%clk 0:02:22.6]} 11. bxc3
{[%clk 0:02:55.3]} 11... g6 {[%clk 0:02:22.3]} 12. Rb1 {[%clk 0:02:53.4]} 12...
Bg7 {[%clk 0:02:20.7]} 13. Bb5+ {[%clk 0:02:50.9]} 13... Kf8 {[%clk 0:02:19.5]}
14. c4 {[%clk 0:02:42.5]} 14... h5 {[%clk 0:02:16.1]} 15. Bd2 {[%clk 0:02:40.7]}
15... Qc7 {[%clk 0:02:14]} 16. Qb3 {[%clk 0:02:34.5]} 16... Kg8 {[%clk
0:02:10.8]} 17. Be3 {[%clk 0:02:28.8]} 17... b6 {[%clk 0:02:04.1]} 18. Bc6
{[%clk 0:02:26.5]} 18... Rb8 {[%clk 0:01:49.7]} 19. c5 {[%clk 0:02:21.4]} 19...
Ba6 {[%clk 0:01:47.6]} 20. cxb6 {[%clk 0:02:18.9]} 20... axb6 {[%clk 0:01:42.7]}
21. Bxb6 {[%clk 0:02:15.9]} 21... Qd6 {[%clk 0:01:38.5]} 22. Rfc1 {[%clk
0:02:09.1]} 22... Kh7 {[%clk 0:01:37.8]} 23. a4 {[%clk 0:02:08.4]} 23... Bh6
{[%clk 0:01:34.3]} 24. Rd1 {[%clk 0:02:07.8]} 24... Be2 {[%clk 0:01:33.1]} 25.
Re1 {[%clk 0:02:04.7]} 25... Ba6 {[%clk 0:01:30.6]} 26. Qb2 {[%clk 0:01:51.3]}
26... f6 {[%clk 0:01:26.1]} 27. a5 {[%clk 0:01:50.8]} 27... Bc4 {[%clk
0:01:17.9]} 28. Red1 {[%clk 0:01:49.4]} 28... Rhc8 {[%clk 0:01:13.3]} 29. Qb4
{[%clk 0:01:28.1]} 29... Be2 {[%clk 0:01:00.9]} 30. Qxd6 {[%clk 0:01:21.8]}
30... exd6 {[%clk 0:01:01.8]} 31. Re1 {[%clk 0:01:22]} 31... Bd3 {[%clk
0:01:01.4]} 32. Rb2 {[%clk 0:01:16.1]} 32... e4 {[%clk 0:00:57.7]} 33. f3 {[%clk
0:01:00.3]} 33... f5 {[%clk 0:00:56.7]} 34. Kf2 {[%clk 0:00:53.4]} 34... Bg7
{[%clk 0:00:56.1]} 35. Rb3 {[%clk 0:00:43.8]} 35... Bc4 {[%clk 0:00:52.7]} 36.
Ra3 {[%clk 0:00:40.6]} 36... Bb2 {[%clk 0:00:42]} 37. Ra4 {[%clk 0:00:34.9]}
37... Bd3 {[%clk 0:00:39.9]} 38. Bd4 {[%clk 0:00:25]} 38... Bxd4+ {[%clk
0:00:26.7]} 39. Rxd4 {[%clk 0:00:24.4]} 39... Rb2+ {[%clk 0:00:27.1]} 40. Kg3
{[%clk 0:00:24.3]} 40... h4+ {[%clk 0:00:25.1]} 41. Kxh4 {[%clk 0:00:17.8]}
41... Rxg2 {[%clk 0:00:24.6]} 42. fxe4 {[%clk 0:00:17.9]} 42... fxe4 {[%clk
0:00:22.7]} 43. a6 {[%clk 0:00:08.3]} 43... Rxh2+ {[%clk 0:00:21.6]} 44. Kg3
{[%clk 0:00:08.2]} 44... Ra2 {[%clk 0:00:21.3]} 45. Bb7 {[%clk 0:00:06.7]} 45...
Rcc2 {[%clk 0:00:20.1]} 46. Rdxe4 {[%clk 0:00:04.4]} 46... Rg2+ {[%clk
0:00:17.9]} 47. Kh3 {[%clk 0:00:04.2]} 47... Rh2+ {[%clk 0:00:11.6]} 48. Kg3
{[%clk 0:00:04.6]} 48... Rag2+ {[%clk 0:00:10.6]} 49. Kf3 {[%clk 0:00:05]} 49...
Rf2+ {[%clk 0:00:11]} 50. Kg3 {[%clk 0:00:05.5]} 50... Bxe4 {[%clk 0:00:11.1]}
51. Rxe4 {[%clk 0:00:05.3]} 51... Rhg2+ {[%clk 0:00:11.4]} 52. Kh3 {[%clk
0:00:05]} 52... Rh2+ {[%clk 0:00:09]} 53. Kg3 {[%clk 0:00:05.3]} 53... Ra2
{[%clk 0:00:08.1]} 54. a7 {[%clk 0:00:04.4]} 54... Rhg2+ {[%clk 0:00:07.3]} 55.
Kh3 {[%clk 0:00:04.7]} 55... Rxa7 {[%clk 0:00:06.9]} 56. Re7+ {[%clk 0:00:04.4]}
56... Kh6 {[%clk 0:00:06.1]} 57. Kxg2 {[%clk 0:00:05.3]} 57... Kg5 {[%clk
0:00:06.2]} 58. Rd7 {[%clk 0:00:05]} 58... Kf5 {[%clk 0:00:05.3]} 59. Bc6 {[%clk
0:00:05]} 59... Ke5 {[%clk 0:00:05.6]} 60. Rxa7 {[%clk 0:00:04.7]} 1-0